bitfinex-derivatives/quotes_BTCF0:USTF0_20250614
["timestamp","ask_amount","ask_price","bid_price","bid_amount"]
[1749887752539,0.79658379,105130.0,105120.0,0.44277322]
[1749887752740,0.79244544,105130.0,105120.0,0.43827551]
[1749887752940,0.79244544,105130.0,105120.0,0.41473863]
[1749887753438,0.79244544,105130.0,105120.0,0.43827544]
[1749887753644,0.79244544,105130.0,105120.0,0.45314257]
[1749887753839,0.79244544,105130.0,105120.0,0.42510878]
[1749887754150,0.79244544,105130.0,105120.0,0.42790714]
[1749887754347,0.79244544,105130.0,105120.0,0.41473863]
[1749887754548,0.79244544,105130.0,105120.0,0.43827751]
[1749887754847,0.79244544,105130.0,105120.0,0.43997613]
[1749887755156,0.79244544,105130.0,105120.0,0.42960573]
[1749887755338,0.79244544,105130.0,105120.0,0.45314509]
[1749887755537,0.79244544,105130.0,105120.0,0.43827746]
[1749887755737,0.79244544,105130.0,105120.0,0.4531418]
[1749887755938,0.79244544,105130.0,105120.0,0.42510721]
[1749887756136,0.79244544,105130.0,105120.0,0.45314137]
[1749887756448,0.79244544,105130.0,105120.0,0.43827396]
[1749887756648,0.79244544,105130.0,105120.0,0.44277249]
[1749887756945,0.79244544,105130.0,105120.0,0.41473863]
[1749887757141,0.79244544,105130.0,105120.0,0.45314117]
[1749887757341,0.79244544,105130.0,105120.0,0.2629691]
[1749887757538,0.79244544,105130.0,105120.0,0.44277168]
[1749887757737,0.79658379,105130.0,105120.0,0.44277175]
[1749887757937,0.79658379,105130.0,105120.0,0.42960583]
[1749887758139,0.79658379,105130.0,105120.0,0.45314029]
[1749887758339,0.79658379,105130.0,105120.0,0.43997437]
[1749887758550,0.79658379,105130.0,105120.0,0.45314022]
[1749887758741,0.79658379,105130.0,105120.0,0.45314025]
[1749887759050,0.79658379,105130.0,105120.0,0.45310025]
[1749887759549,0.79658379,105130.0,105120.0,0.46982714]
[1749887759736,0.79658379,105130.0,105120.0,0.45945856]
[1749887759939,0.79658379,105130.0,105120.0,0.44179452]
[1749887760244,0.79658379,105130.0,105120.0,0.46982747]
[1749887760445,0.79658379,105130.0,105120.0,0.48910612]
[1749887760646,0.79658379,105130.0,105120.0,0.49080737]
[1749887760852,0.79658379,105130.0,105120.0,0.50117511]
[1749887761146,0.79658379,105130.0,105120.0,0.50226967]
[1749887761342,0.79658379,105130.0,105120.0,0.51263742]
[1749887761551,0.79658379,105130.0,105120.0,0.51713673]
[1749887761847,0.79658379,105130.0,105120.0,0.51713475]
[1749887762043,0.79658379,105130.0,105120.0,0.52750249]
[1749887762342,0.79658379,105130.0,105120.0,0.52750243]
[1749887762542,0.79658379,105130.0,105120.0,0.49947152]
[1749887762749,0.79658379,105130.0,105120.0,0.33733037]
[1749887762946,0.79658379,105130.0,105120.0,0.48910367]
[1749887763347,0.79658379,105130.0,105120.0,0.52750229]
[1749887763546,0.79658379,105130.0,105120.0,0.5275022]
[1749887763843,0.79658379,105130.0,105120.0,0.49947131]
[1749887764047,0.79658379,105130.0,105120.0,0.52750199]
[1749887764547,0.79658379,105130.0,105120.0,0.45495018]
[1749887764748,0.79658379,105130.0,105120.0,0.29280894]
[1749887764948,0.79658379,105130.0,105120.0,0.48298114]
[1749887765149,0.79658379,105130.0,105120.0,0.51433856]
[1749887765350,0.79658379,105130.0,105120.0,0.5126351]
[1749887765543,0.79658379,105130.0,105120.0,0.51433856]
[1749887765737,0.79658379,105130.0,105120.0,0.30929926]
[1749887765943,0.79658379,105130.0,105120.0,0.33733]
[1749887766138,0.79658379,105130.0,105120.0,0.3224629]
[1749887766347,0.79658379,105130.0,105120.0,0.28243683]
[1749887766547,0.79658379,105130.0,105120.0,0.27793326]
[1749887766847,0.79658379,105130.0,105120.0,0.29279978]
[1749887767049,0.79658379,105130.0,105120.0,0.29279975]
[1749887767248,0.79658379,105130.0,105120.0,0.27793261]
[1749887767550,0.79658379,105130.0,105120.0,0.27964122]
[1749887767747,0.79658379,105130.0,105120.0,0.2927997]
[1749887767950,0.79658379,105130.0,105120.0,0.29280018]
[1749887768350,0.79658379,105130.0,105120.0,0.29280013]
[1749887768551,0.79658379,105130.0,105120.0,0.29280016]
[1749887768747,0.79658379,105130.0,105120.0,0.27793309]
[1749887768951,0.79658379,105130.0,105120.0,0.29280019]
[1749887769146,0.79658379,105130.0,105120.0,0.27964169]
[1749887769451,0.79658379,105130.0,105120.0,0.29280117]
[1749887769654,0.79658379,105130.0,105120.0,0.26927769]
[1749887769846,0.79658379,105130.0,105120.0,0.29280121]
[1749887770242,0.79658379,105130.0,105120.0,0.48297258]
[1749887770454,0.79658379,105130.0,105120.0,0.48297204]
[1749887770645,0.79658379,105130.0,105120.0,0.46810465]
[1749887770845,0.79658379,105130.0,105120.0,0.48297175]
[1749887771047,0.79658379,105130.0,105120.0,0.46810465]
[1749887771249,0.79658379,105130.0,105120.0,0.47260844]
[1749887771453,0.79658379,105130.0,105120.0,0.48297176]
[1749887771752,0.79658379,105130.0,105120.0,0.46981308]
[1749887772047,0.79658379,105130.0,105120.0,0.48297169]
[1749887772250,0.79658379,105130.0,105120.0,0.45944979]
[1749887772455,0.79658379,105130.0,105120.0,0.46809819]
[1749887772748,0.79658379,105130.0,105120.0,0.46981308]
[1749887772955,0.79658379,105130.0,105120.0,0.46810929]
[1749887773146,0.79658379,105130.0,105120.0,0.45774415]
[1749887773346,0.79658379,105130.0,105120.0,0.45774417]
[1749887773553,0.79658379,105130.0,105120.0,0.48297643]
[1749887773749,0.79658379,105130.0,105120.0,0.4829765]
[1749887774146,0.79658379,105130.0,105120.0,0.48297642]
[1749887774346,0.79658379,105130.0,105120.0,0.48297643]
[1749887774543,0.79658379,105130.0,105120.0,0.46981489]
[1749887774753,0.79658379,105130.0,105120.0,0.46981531]
[1749887774955,0.79658379,105130.0,105120.0,0.45944979]
[1749887775149,0.79658379,105130.0,105120.0,0.46981531]
[1749887775350,0.91525779,105130.0,105120.0,0.46811047]
[1749887775551,0.91525779,105130.0,105120.0,0.45774494]
[1749887775751,0.91525779,105130.0,105120.0,0.45774504]
[1749887775953,0.91525779,105130.0,105120.0,0.48297849]
[1749887776153,0.91525779,105130.0,105120.0,0.47261322]
[1749887776360,0.91525779,105130.0,105120.0,0.48297967]
[1749887776552,0.91525779,105130.0,105120.0,0.44458269]
[1749887776752,0.91525779,105130.0,105120.0,0.48297957]
[1749887777360,0.91525779,105130.0,105120.0,0.48297979]
[1749887777562,2.41525779,105130.0,105120.0,0.48297979]
[1749887777755,2.29658379,105130.0,105120.0,0.48297976]
[1749887777960,2.41525779,105130.0,105120.0,0.46811266]
[1749887778256,2.41525779,105130.0,105120.0,0.4698164]
[1749887778453,2.29658379,105130.0,105120.0,0.46981586]
[1749887778648,2.29658379,105130.0,105120.0,0.45944949]
[1749887778854,2.29658379,105130.0,105120.0,0.4698162]
[1749887779056,2.29658379,105130.0,105120.0,0.46981654]
[1749887779365,2.29658379,105130.0,105120.0,0.4698166]
[1749887779557,2.29658379,105130.0,105120.0,0.45944948]
[1749887779763,2.29658379,105130.0,105120.0,0.45944938]
[1749887780165,2.29658379,105130.0,105120.0,0.45494971]
[1749887780458,2.29658379,105130.0,105120.0,0.45944938]
[1749887780652,2.29658379,105130.0,105120.0,0.45494971]
[1749887780856,2.29658379,105130.0,105120.0,0.26477771]
[1749887781057,2.29658379,105130.0,105120.0,0.25441059]
[1749887781263,2.29658379,105130.0,105120.0,0.27964427]
[1749887781570,2.29658379,105130.0,105120.0,0.46981627]
[1749887781963,0.55509245,105130.0,105120.0,0.80752003]
[1749887782259,0.19429215,105130.0,105120.0,1.27903602]
[1749887782460,0.00413835,105130.0,105120.0,1.45269741]
[1749887782660,0.00413835,105130.0,105120.0,1.65381743]
[1749887782860,0.00413835,105130.0,105120.0,1.65381682]
[1749887783059,0.00413835,105130.0,105120.0,1.64345476]
[1749887783259,0.3327521,105140.0,105130.0,0.1901541]
[1749887783459,0.4327521,105140.0,105130.0,2.14053639]
[1749887783660,0.4327521,105140.0,105130.0,2.15539989]
[1749887783863,0.4327521,105140.0,105130.0,2.15539988]
[1749887784165,0.4327521,105140.0,105130.0,2.16576111]
[1749887784369,0.4327521,105140.0,105130.0,2.15089762]
[1749887784561,0.3852141,105140.0,105130.0,2.15539988]
[1749887784866,0.3862141,105140.0,105130.0,2.15089762]
[1749887785070,0.3862141,105140.0,105130.0,2.16576111]
[1749887785254,0.3862141,105140.0,105130.0,2.14053639]
[1749887785762,0.3862141,105140.0,105130.0,2.15087749]
[1749887785965,0.3862141,105140.0,105130.0,2.14053639]
[1749887786265,0.3862141,105140.0,105130.0,2.10649869]
[1749887786465,0.3862141,105140.0,105130.0,2.09163518]
[1749887786666,0.3862141,105140.0,105130.0,2.10649868]
[1749887787165,0.3862141,105140.0,105130.0,2.09163518]
[1749887787366,0.3862141,105140.0,105130.0,2.10649869]
[1749887787762,0.3862141,105140.0,105130.0,2.10649868]
[1749887787961,0.3862141,105140.0,105130.0,2.08129438]
[1749887788366,0.3862141,105140.0,105130.0,2.10649869]
[1749887788867,0.3862141,105140.0,105130.0,2.09163518]
[1749887789071,0.3862141,105140.0,105130.0,2.09615789]
[1749887789261,0.3862141,105140.0,105130.0,2.10649869]
[1749887789565,0.3862141,105140.0,105130.0,2.09615789]
[1749887789968,0.3862141,105140.0,105130.0,2.10648714]
[1749887790270,0.3862141,105140.0,105130.0,2.10643712]
[1749887790662,0.3862141,105140.0,105130.0,2.09615789]
[1749887790863,0.3862141,105140.0,105130.0,2.10643711]
[1749887791169,0.3862141,105140.0,105130.0,2.10643691]
[1749887791369,0.3862141,105140.0,105130.0,2.09157341]
[1749887791570,0.3862141,105140.0,105130.0,2.09615788]
[1749887791765,0.3862141,105140.0,105130.0,2.10643684]
[1749887792364,0.3862141,105140.0,105130.0,2.10643689]
[1749887792566,0.3862141,105140.0,105130.0,2.0915735]
[1749887792765,0.3862141,105140.0,105130.0,2.106437]
[1749887792968,0.3862141,105140.0,105130.0,2.09615788]
[1749887793266,0.3862141,105140.0,105130.0,2.13643706]
[1749887793571,0.3862141,105140.0,105130.0,2.11129438]
[1749887793773,0.3862141,105140.0,105130.0,2.12615788]
[1749887794460,0.3862141,105140.0,105130.0,2.12157361]
[1749887794666,0.3862141,105140.0,105130.0,2.11129438]
[1749887794865,0.3862141,105140.0,105130.0,2.12615789]
[1749887795068,0.3862141,105140.0,105130.0,2.13643223]
[1749887795363,0.39035245,105140.0,105130.0,2.13643223]
[1749887796576,0.39035245,105140.0,105130.0,2.11129438]
[1749887796872,0.39035245,105140.0,105130.0,2.12157101]
[1749887797067,0.39035245,105140.0,105130.0,2.13643451]
[1749887797272,0.39035245,105140.0,105130.0,2.13657222]
[1749887797470,0.39035245,105140.0,105130.0,2.12629606]
[1749887797972,0.39035245,105140.0,105130.0,2.13657207]
[1749887798866,0.39035245,105140.0,105130.0,2.12170857]
[1749887799174,0.39035245,105140.0,105130.0,2.13657206]
[1749887799471,0.39035245,105140.0,105130.0,2.13657205]
[1749887799670,0.39035245,105140.0,105130.0,2.13657207]
[1749887799974,0.39035245,105140.0,105130.0,2.13657209]
[1749887800476,0.39035245,105140.0,105130.0,2.12629607]
[1749887800975,0.39035245,105140.0,105130.0,2.13656604]
[1749887801172,0.39035245,105140.0,105130.0,2.11143256]
[1749887801371,0.39035245,105140.0,105130.0,2.12629605]
[1749887801674,0.39035245,105140.0,105130.0,2.13656604]
[1749887801875,0.39035245,105140.0,105130.0,2.12170255]
[1749887802073,0.39035245,105140.0,105130.0,2.13656604]
[1749887802275,0.39035245,105140.0,105130.0,2.12170255]
[1749887802472,0.39035245,105140.0,105130.0,2.12629605]
[1749887802672,0.39035245,105140.0,105130.0,2.13656604]
[1749887803377,0.39035245,105140.0,105130.0,2.12170255]
[1749887803678,0.39035245,105140.0,105130.0,2.12170253]
[1749887803879,0.39035245,105140.0,105130.0,2.13656602]
[1749887804178,0.39035245,105140.0,105130.0,2.13661598]
[1749887804576,0.39035245,105140.0,105130.0,2.13661679]
[1749887804780,0.39035245,105140.0,105130.0,2.1217533]
[1749887805075,0.39035245,105140.0,105130.0,2.12629605]
[1749887805272,0.39035245,105140.0,105130.0,2.13661665]
[1749887805669,0.39035245,105140.0,105130.0,2.12629605]
[1749887805869,0.39035245,105140.0,105130.0,2.13661665]
[1749887806279,0.39035245,105140.0,105130.0,2.12175316]
[1749887806477,0.39035245,105140.0,105130.0,2.13661665]
[1749887806667,0.39035245,105140.0,105130.0,2.12175316]
[1749887806866,0.39035245,105140.0,105130.0,2.13661665]
[1749887807070,0.39035245,105140.0,105130.0,2.12629605]
[1749887807267,0.39035245,105140.0,105130.0,2.11143256]
[1749887807473,0.39035245,105140.0,105130.0,2.13661659]
[1749887807879,0.39035245,105140.0,105130.0,2.11143256]
[1749887808075,0.45345245,105140.0,105130.0,2.13661659]
[1749887808381,0.45345245,105140.0,105130.0,2.19585789]
[1749887808579,0.45345245,105140.0,105130.0,2.1809944]
[1749887808974,0.45345245,105140.0,105130.0,2.17067457]
[1749887809373,0.45345245,105140.0,105130.0,2.19585943]
[1749887809779,0.45345245,105140.0,105130.0,2.17067457]
[1749887809980,0.45345245,105140.0,105130.0,2.18099594]
[1749887810181,0.45345245,105140.0,105130.0,2.19585942]
[1749887810378,0.45345245,105140.0,105130.0,2.18099593]
[1749887810675,0.45345245,105140.0,105130.0,2.18099594]
[1749887810875,0.45345245,105140.0,105130.0,2.19585943]
[1749887811078,0.45345245,105140.0,105130.0,2.17067457]
[1749887811381,0.45345245,105140.0,105130.0,2.23009273]
[1749887811581,0.45345245,105140.0,105130.0,2.2404141]
[1749887811776,0.45345245,105140.0,105130.0,2.2404138]
[1749887812282,0.45345245,105140.0,105130.0,2.24041043]
[1749887812875,0.45345245,105140.0,105130.0,2.19524694]
[1749887813277,0.45345245,105140.0,105130.0,2.21011043]
[1749887813684,0.45345245,105140.0,105130.0,2.17701043]
[1749887814075,0.60004379,105140.0,105130.0,2.16669273]
[1749887814280,0.60004379,105140.0,105130.0,2.17701043]
[1749887814582,0.60004379,105140.0,105130.0,2.17701185]
[1749887815183,0.60004379,105140.0,105130.0,2.15182924]
[1749887815377,0.60004379,105140.0,105130.0,2.17701185]
[1749887815577,0.60004379,105140.0,105130.0,1.39677273]
[1749887815777,0.60004379,105140.0,105130.0,2.33946852]
[1749887815978,0.60004379,105140.0,105130.0,2.34401279]
[1749887816174,0.60004379,105140.0,105130.0,2.32914924]
[1749887816386,0.60004379,105140.0,105130.0,2.35433212]
[1749887816586,0.60004379,105140.0,105130.0,2.32914924]
[1749887816781,0.60004379,105140.0,105130.0,2.35433212]
[1749887816989,0.60004379,105140.0,105130.0,2.32914924]
[1749887817179,0.60004379,105140.0,105130.0,2.35433212]
[1749887817375,0.60004379,105140.0,105130.0,2.34401281]
[1749887818377,0.60004379,105140.0,105130.0,2.35433212]
[1749887818785,0.60004379,105140.0,105130.0,2.34401281]
[1749887818985,0.45345245,105140.0,105130.0,2.34401281]
[1749887819184,0.45345245,105140.0,105130.0,2.35433212]
[1749887819388,0.45345245,105140.0,105130.0,2.35433211]
[1749887819576,0.45345245,105140.0,105130.0,2.3440128]
[1749887819781,0.45345245,105140.0,105130.0,2.35433274]
[1749887820082,0.45345245,105140.0,105130.0,2.33946932]
[1749887820382,0.45345245,105140.0,105130.0,2.34401281]
[1749887820687,0.45345245,105140.0,105130.0,2.35433289]
[1749887820888,0.45345245,105140.0,105130.0,2.33946932]
[1749887821089,0.45345245,105140.0,105130.0,2.3543329]
[1749887821585,0.45345245,105140.0,105130.0,2.35433289]
[1749887822085,0.60004379,105140.0,105130.0,2.35433289]
[1749887822283,0.60004379,105140.0,105130.0,2.32914924]
[1749887822478,0.60004379,105140.0,105130.0,2.35433303]
[1749887822785,0.60004379,105140.0,105130.0,2.34401281]
[1749887822987,0.60004379,105140.0,105130.0,2.35433305]
[1749887823188,0.45345245,105140.0,105130.0,2.34401281]
[1749887823384,0.40591445,105140.0,105130.0,2.33946948]
[1749887823687,0.40591445,105140.0,105130.0,2.35433293]
[1749887824092,0.35837875,105140.0,105130.0,2.33946937]
[1749887824391,0.10513835,105140.0,105130.0,2.71899088]
[1749887824695,0.10513835,105140.0,105130.0,2.70412615]
[1749887824992,0.10513835,105140.0,105130.0,2.69380723]
[1749887825286,0.10513835,105140.0,105130.0,2.70411648]
[1749887825687,0.10513835,105140.0,105130.0,2.70866978]
[1749887825889,0.10513835,105140.0,105130.0,2.7189784]
[1749887826193,0.10513835,105140.0,105130.0,2.70411585]
[1749887826387,0.10513835,105140.0,105130.0,2.7189784]
[1749887827090,0.10513835,105140.0,105130.0,2.69380723]
[1749887827392,0.10513835,105140.0,105130.0,2.7189784]
[1749887827592,0.10513835,105140.0,105130.0,2.72816746]
[1749887827788,0.10513835,105140.0,105130.0,2.70411585]
[1749887827983,0.10513835,105140.0,105130.0,2.7189784]
[1749887828390,0.10513835,105140.0,105130.0,2.70866978]
[1749887828586,0.10513835,105140.0,105130.0,2.69380723]
[1749887828897,0.101,105140.0,105130.0,2.71897769]
[1749887829097,0.101,105140.0,105130.0,2.71897754]
[1749887829299,0.101,105140.0,105130.0,2.70866951]
[1749887829493,0.101,105140.0,105130.0,2.71897746]
[1749887829694,0.101,105140.0,105130.0,2.71898034]
[1749887829893,0.10513835,105140.0,105130.0,2.69380723]
[1749887830094,0.10513835,105140.0,105130.0,2.70866925]
[1749887830297,0.10513835,105140.0,105130.0,2.71897989]
[1749887830494,0.10513835,105140.0,105130.0,2.71897987]
[1749887830694,0.10513835,105140.0,105130.0,2.56207786]
[1749887830896,0.101,105140.0,105130.0,2.71897987]
[1749887831095,0.101,105140.0,105130.0,2.71898002]
[1749887831295,0.101,105140.0,105130.0,2.70411338]
[1749887831498,0.101,105140.0,105130.0,2.69380723]
[1749887831696,0.101,105140.0,105130.0,2.71897552]
[1749887831996,0.10513835,105140.0,105130.0,2.69380723]
[1749887832199,0.10513835,105140.0,105130.0,2.71897581]
[1749887832393,0.10513835,105140.0,105130.0,2.70411348]
[1749887832592,0.10513835,105140.0,105130.0,1.61028214]
[1749887832789,0.29527425,105140.0,105130.0,2.71873595]
[1749887833098,0.35967425,105140.0,105130.0,2.71873665]
[1749887833303,0.35967425,105140.0,105130.0,2.71873658]
[1749887833894,0.35967425,105140.0,105130.0,2.35792835]
[1749887834111,0.35967425,105140.0,105130.0,2.35792874]
[1749887834301,0.35967425,105140.0,105130.0,2.34306597]
[1749887834498,0.35967425,105140.0,105130.0,2.34763002]
[1749887834700,0.35967425,105140.0,105130.0,2.35792876]
[1749887835405,0.35967425,105140.0,105130.0,2.35793717]
[1749887835905,0.35967425,105140.0,105130.0,2.3579372]
[1749887836104,0.35967425,105140.0,105130.0,2.34307441]
[1749887836303,0.35967425,105140.0,105130.0,2.33276723]
[1749887836505,0.35967425,105140.0,105130.0,2.3579372]
[1749887837009,0.35967425,105140.0,105130.0,2.34763002]
[1749887837306,0.35967425,105140.0,105130.0,2.35793705]
[1749887837508,0.35967425,105140.0,105130.0,2.34307421]
[1749887837801,0.35967425,105140.0,105130.0,2.34763]
[1749887838005,0.35967425,105140.0,105130.0,2.35793696]
[1749887838204,0.35967425,105140.0,105130.0,2.33276723]
[1749887838406,0.35967425,105140.0,105130.0,2.34763]
[1749887838606,0.35967425,105140.0,105130.0,2.35793696]
[1749887838806,0.35967425,105140.0,105130.0,2.34307419]
[1749887839000,0.3555359,105140.0,105130.0,2.34763005]
[1749887839207,0.3555359,105140.0,105130.0,2.34307718]
[1749887839505,0.3555359,105140.0,105130.0,2.35794004]
[1749887839997,0.35967425,105140.0,105130.0,2.34763009]
[1749887840201,0.35967425,105140.0,105130.0,2.35794084]
[1749887840708,0.35967425,105140.0,105130.0,2.35794087]
[1749887840909,0.35967425,105140.0,105130.0,2.35794061]
[1749887841208,0.35967425,105140.0,105130.0,2.33276723]
[1749887841409,0.35967425,105140.0,105130.0,2.35794015]
[1749887841907,0.35967425,105140.0,105130.0,2.34763011]
[1749887842209,0.35967425,105140.0,105130.0,2.4171767]
[1749887842503,0.35967425,105140.0,105130.0,2.40678694]
[1749887842908,0.35967425,105140.0,105130.0,2.4170965]
[1749887843609,0.35967425,105140.0,105130.0,2.40678694]
[1749887843807,0.86706559,105140.0,105130.0,1.5546365]
[1749887844012,0.89966559,105140.0,105130.0,2.32400542]
[1749887844311,0.89966559,105140.0,105130.0,2.30914254]
[1749887844512,0.89966559,105140.0,105130.0,2.32400604]
[1749887844710,0.75307425,105140.0,105130.0,2.30914254]
[1749887844909,0.75307425,105140.0,105130.0,2.31368743]
[1749887845108,0.75307425,105140.0,105130.0,2.32400304]
[1749887845302,0.75307425,105140.0,105130.0,2.34618743]
[1749887845509,0.75307425,105140.0,105130.0,2.35650304]
[1749887845905,0.75307425,105140.0,105130.0,2.34163954]
[1749887846101,0.75307425,105140.0,105130.0,2.34618743]
[1749887846314,0.89966559,105140.0,105130.0,2.3416394]
[1749887846611,0.75307425,105140.0,105130.0,2.35650285]
[1749887847006,0.75307425,105140.0,105130.0,2.35646293]
[1749887847206,0.75307425,105140.0,105130.0,2.25270176]
[1749887847505,0.75307425,105140.0,105130.0,2.24238612]
[1749887847806,0.75307425,105140.0,105130.0,2.26756534]
[1749887848409,0.75307425,105140.0,105130.0,2.2572497]
[1749887848609,0.75307425,105140.0,105130.0,2.26756534]
[1749887849207,0.75307425,105140.0,105130.0,2.26757593]
[1749887849407,0.75307425,105140.0,105130.0,2.25271234]
[1749887849611,0.75307425,105140.0,105130.0,2.2572497]
[1749887849910,0.75307425,105140.0,105130.0,2.26757593]
[1749887850215,0.75307425,105140.0,105130.0,2.25271234]
[1749887850416,0.75307425,105140.0,105130.0,2.26757592]
[1749887850908,0.75307425,105140.0,105130.0,2.24238612]
[1749887851209,0.75307425,105140.0,105130.0,2.25552215]
[1749887851415,0.75307425,105140.0,105130.0,2.27038573]
[1749887851713,0.75307425,105140.0,105130.0,2.2572497]
[1749887851911,0.75307425,105140.0,105130.0,2.28089278]
[1749887852111,0.75307425,105140.0,105130.0,2.28089276]
[1749887852315,0.75307425,105140.0,105130.0,2.27038576]
[1749887852507,0.75307425,105140.0,105130.0,2.25289312]
[1749887852710,0.75307425,105140.0,105130.0,2.28088872]
[1749887852904,0.75307425,105140.0,105130.0,2.2808887]
[1749887853105,0.75307425,105140.0,105130.0,2.2572497]
[1749887853313,0.75307425,105140.0,105130.0,2.24238612]
[1749887853507,0.75307425,105140.0,105130.0,2.27038352]
[1749887853704,0.75307425,105140.0,105130.0,2.28088873]
[1749887854119,0.75307425,105140.0,105130.0,2.26602515]
[1749887854417,0.75307425,105140.0,105130.0,2.28089063]
[1749887854612,0.75307425,105140.0,105130.0,2.28088884]
[1749887854812,0.75307425,105140.0,105130.0,2.27038127]
[1749887855006,0.75307425,105140.0,105130.0,2.28088646]
[1749887855314,0.75307425,105140.0,105130.0,2.25551757]
[1749887855620,0.75307425,105140.0,105130.0,2.25289143]
[1749887856118,0.75307425,105140.0,105130.0,2.28088643]
[1749887856313,0.75307425,105140.0,105130.0,2.24238612]
[1749887856621,0.75307425,105140.0,105130.0,2.28088642]
[1749887856813,0.75307425,105140.0,105130.0,2.26602282]
[1749887857117,0.75307425,105140.0,105130.0,2.28088643]
[1749887857420,0.75307425,105140.0,105130.0,2.28089204]
[1749887857910,0.75307425,105140.0,105130.0,2.28089203]
[1749887858317,0.75307425,105140.0,105130.0,2.28089219]
[1749887858716,0.75307425,105140.0,105130.0,2.26775517]
[1749887858917,0.75307425,105140.0,105130.0,2.356653]
[1749887859113,0.75307425,105140.0,105130.0,2.36979059]
[1749887859320,0.75307425,105140.0,105130.0,2.35928512]
[1749887859617,0.75307425,105140.0,105130.0,2.3697917]
[1749887859818,0.75307425,105140.0,105130.0,2.33128393]
[1749887860013,0.75307425,105140.0,105130.0,2.36979191]
[1749887860419,0.75307425,105140.0,105130.0,2.34614751]
[1749887860618,0.75307425,105140.0,105130.0,2.36979348]
[1749887860822,0.75307425,105140.0,105130.0,2.3444221]
[1749887861020,0.75307425,105140.0,105130.0,2.36979345]
[1749887861218,0.75307425,105140.0,105130.0,2.36979628]
[1749887861414,0.75307425,105140.0,105130.0,2.35928848]
[1749887861613,0.75307425,105140.0,105130.0,2.36979855]
[1749887861817,0.75307425,105140.0,105130.0,2.35493517]
[1749887862117,0.75307425,105140.0,105130.0,2.35665758]
[1749887862310,0.75307425,105140.0,105130.0,2.36979859]
[1749887862515,0.75307425,105140.0,105130.0,2.35928851]
[1749887862817,0.75307425,105140.0,105130.0,2.33128393]
[1749887863025,0.75307425,105140.0,105130.0,2.34614751]
[1749887863213,0.72047425,105140.0,105130.0,2.35665757]
[1749887863522,0.72047425,105140.0,105130.0,2.34179399]
[1749887863722,0.72047425,105140.0,105130.0,2.36979841]
[1749887863914,0.72047425,105140.0,105130.0,2.35928819]
[1749887864124,0.72047425,105140.0,105130.0,2.36979825]
[1749887864410,0.72047425,105140.0,105130.0,2.33128393]
[1749887864614,0.72047425,105140.0,105130.0,2.35928835]
[1749887864822,0.72047425,105140.0,105130.0,2.36979842]
[1749887865019,0.72047425,105140.0,105130.0,2.36979843]
[1749887865219,0.72047425,105140.0,105130.0,2.36979842]
[1749887865717,0.72047425,105140.0,105130.0,2.35493484]
[1749887866023,0.10513835,105140.0,105130.0,2.65821811]
[1749887866218,0.101,105140.0,105130.0,2.70645566]
[1749887866415,0.001,105140.0,105130.0,2.7213177]
[1749887866615,0.001,105140.0,105130.0,2.72131768]
[1749887866816,0.001,105140.0,105130.0,2.72131772]
[1749887867112,0.001,105140.0,105130.0,2.72231772]
[1749887867315,0.50792095,105150.0,105140.0,0.190136]
[1749887867515,0.50792095,105150.0,105140.0,0.65001412]
[1749887867817,0.50792095,105150.0,105140.0,0.65001386]
[1749887868218,0.50792095,105150.0,105140.0,0.65001059]
[1749887868516,0.50992095,105150.0,105140.0,0.56111278]
[1749887868719,0.50992095,105150.0,105140.0,0.65001068]
[1749887868918,1.08011229,105150.0,105140.0,1.47427064]
[1749887869117,1.08011229,105150.0,105140.0,1.4891286]
[1749887869323,1.11455064,105150.0,105140.0,1.4891286]
[1749887870928,1.11455064,105150.0,105140.0,1.47426585]
[1749887871129,1.11455064,105150.0,105140.0,1.46376576]
[1749887873030,0.9679593,105150.0,105140.0,1.46376576]
[1749887873228,1.11455064,105150.0,105140.0,1.46376576]
[1749887873631,1.11455064,105150.0,105140.0,1.31717442]
[1749887873930,1.11455064,105150.0,105140.0,1.46376576]
[1749887874229,1.11455064,105150.0,105140.0,1.31717442]
[1749887874424,1.11455064,105150.0,105140.0,1.46376576]
[1749887874626,1.11455064,105150.0,105140.0,0.48528576]
[1749887874829,1.11455064,105150.0,105140.0,1.43192576]
[1749887880232,1.11455064,105150.0,105140.0,1.43205359]
[1749887880532,1.11455064,105150.0,105140.0,1.46505359]
[1749887882339,0.9679593,105150.0,105140.0,1.46505359]
[1749887882533,1.11455064,105150.0,105140.0,1.46505359]
[1749887883334,0.8901276,105150.0,105140.0,1.46505359]
[1749887883539,0.88598925,105150.0,105140.0,1.46505359]
[1749887883736,0.52518925,105150.0,105140.0,1.52715359]
[1749887884541,0.5293276,105150.0,105140.0,1.52715359]
[1749887886136,0.4665276,105150.0,105140.0,1.52715359]
[1749887886341,0.8273276,105150.0,105140.0,1.52715359]
[1749887887046,0.1813484,105150.0,105140.0,1.52715359]
[1749887887447,0.3714662,105150.0,105140.0,1.52715359]
[1749887887745,0.17721005,105150.0,105140.0,1.52713878]
[1749887888246,0.17721005,105150.0,105140.0,1.48271357]
[1749887888447,0.36732785,105150.0,105140.0,1.48271357]
[1749887890147,0.36732775,105150.0,105140.0,1.48271357]
[1749887890740,0.36732775,105150.0,105140.0,1.37846734]
[1749887890946,0.17721005,105150.0,105140.0,1.37846734]
[1749887891244,0.36732775,105150.0,105140.0,1.37846734]
[1749887892040,0.36732775,105150.0,105140.0,2.20034734]
[1749887892646,0.1813484,105150.0,105140.0,2.20034734]
[1749887893650,0.17721005,105150.0,105140.0,2.20034734]
[1749887893948,0.17521005,105150.0,105140.0,2.20034734]
[1749887894152,0.17521005,105150.0,105140.0,2.56214734]
[1749887898755,0.1793484,105150.0,105140.0,2.56214734]
[1749887899357,0.3694663,105150.0,105140.0,2.56214734]
[1749887899852,0.36532795,105150.0,105140.0,2.56214734]
[1749887900156,0.17521005,105150.0,105140.0,2.56214734]
[1749887900456,0.36532795,105150.0,105140.0,2.56214734]
[1749887901751,0.36532795,105150.0,105140.0,2.75519877]
[1749887902859,0.3694663,105150.0,105140.0,2.75519877]
[1749887903859,0.36532795,105150.0,105140.0,2.75519877]
[1749887907759,0.17521005,105150.0,105140.0,2.75519877]
[1749887908062,0.36532795,105150.0,105140.0,2.75519877]
[1749887908255,0.1,105150.0,105140.0,2.75519877]
[1749887908756,0.2901179,105150.0,105140.0,2.60860743]
[1749887909061,0.2901179,105150.0,105140.0,2.75519877]
[1749887910967,0.29425625,105150.0,105140.0,2.75519877]
[1749887913373,0.29425625,105150.0,105140.0,2.69597206]
[1749887913575,0.29425625,105150.0,105140.0,2.3944052]
[1749887914074,0.35675625,105150.0,105140.0,2.3944052]
[1749887914374,0.35675625,105150.0,105140.0,1.4477652]
[1749887914573,0.86414759,105150.0,105140.0,2.2989452]
[1749887914773,0.89444759,105150.0,105140.0,1.3526652]
[1749887915074,0.89444759,105150.0,105140.0,2.2989452]
[1749887917377,0.89444759,105150.0,105140.0,1.3526652]
[1749887917574,0.89444759,105150.0,105140.0,2.2989452]
[1749887917974,0.89444759,105150.0,105140.0,0.5307852]
[1749887918179,0.89444759,105150.0,105140.0,2.2989452]
[1749887918779,0.89444759,105150.0,105140.0,2.2979452]
[1749887919179,0.89644759,105150.0,105140.0,2.2979052]